[Event "Late-Titled-Tuesday-Blitz-June-04-2024"]
[Site "Chess.com"]
[Date "2024.06.04"]
[Round "5"]
[White "Jahonas"]
[Black "MKlose11"]
[Result "0-1"]
[WhiteElo "2444"]
[BlackElo "2605"]
[TimeControl "180+1"]
[EndTime "14:51:58 PDT"]
[Termination "MKlose11 won by resignation"]

1. e4 {[%clk 0:03:00.9]} 1... e6 {[%clk 0:02:58.4]} 2. Nf3 {[%clk 0:03:00.6]}
2... d5 {[%clk 0:02:59.3]} 3. Nc3 {[%clk 0:03:00.3]} 3... d4 {[%clk 0:02:57.1]}
4. Ne2 {[%clk 0:02:59.9]} 4... c5 {[%clk 0:02:57.7]} 5. d3 {[%clk 0:03:00]} 5...
Nc6 {[%clk 0:02:53.1]} 6. c4 {[%clk 0:02:56.9]} 6... dxc3 {[%clk 0:02:49.8]} 7.
Nxc3 {[%clk 0:02:56.3]} 7... Nf6 {[%clk 0:02:48.9]} 8. Be2 {[%clk 0:02:56]} 8...
Be7 {[%clk 0:02:47.4]} 9. O-O {[%clk 0:02:55.7]} 9... O-O {[%clk 0:02:47.2]} 10.
h3 {[%clk 0:02:52.2]} 10... Nd4 {[%clk 0:02:47.2]} 11. Nxd4 {[%clk 0:02:50.5]}
11... cxd4 {[%clk 0:02:46.5]} 12. Nb5 {[%clk 0:02:44.5]} 12... a6 {[%clk
0:02:44]} 13. Na3 {[%clk 0:02:44.1]} 13... b5 {[%clk 0:02:40.6]} 14. Bf4 {[%clk
0:02:38.9]} 14... Bb7 {[%clk 0:02:40.4]} 15. Rc1 {[%clk 0:02:32.8]} 15... Rc8
{[%clk 0:02:38.1]} 16. Qb3 {[%clk 0:02:28]} 16... Nd7 {[%clk 0:02:31.7]} 17.
Rxc8 {[%clk 0:02:25]} 17... Bxc8 {[%clk 0:02:30.5]} 18. Rc1 {[%clk 0:02:23.3]}
18... e5 {[%clk 0:02:30.5]} 19. Bd2 {[%clk 0:02:19.8]} 19... Nc5 {[%clk
0:02:29.2]} 20. Qd1 {[%clk 0:02:18.9]} 20... Be6 {[%clk 0:02:28.8]} 21. Bb4
{[%clk 0:02:15]} 21... Na4 {[%clk 0:02:27.4]} 22. Bxe7 {[%clk 0:02:01.8]} 22...
Qxe7 {[%clk 0:02:28.3]} 23. Nc4 {[%clk 0:02:00.2]} 23... f6 {[%clk 0:02:20.5]}
24. Na5 {[%clk 0:01:25.8]} 24... Nxb2 {[%clk 0:02:18.3]} 25. Qc2 {[%clk
0:01:19]} 25... Na4 {[%clk 0:02:18.3]} 26. Qc6 {[%clk 0:01:10.8]} 26... Nc3
{[%clk 0:02:15.3]} 27. Bg4 {[%clk 0:01:07.7]} 27... Bxg4 {[%clk 0:02:13.9]} 28.
hxg4 {[%clk 0:01:08.6]} 28... Ne2+ {[%clk 0:02:14]} 29. Kf1 {[%clk 0:01:05.4]}
29... Nxc1 {[%clk 0:02:14.9]} 30. Qxc1 {[%clk 0:01:05.4]} 30... Qb4 {[%clk
0:02:11.6]} 31. Nc6 {[%clk 0:01:04.6]} 31... Qc3 {[%clk 0:02:10.8]} 0-1

[Event "Late-Titled-Tuesday-Blitz-June-04-2024"]
[Site "Chess.com"]
[Date "2024.06.04"]
[Round "5"]
[White "isla88"]
[Black "chess94cu"]
[Result "0-1"]
[WhiteElo "2452"]
[BlackElo "2626"]
[TimeControl "180+1"]
[EndTime "14:52:21 PDT"]
[Termination "chess94cu won by resignation"]

1. Nf3 {[%clk 0:03:00.9]} 1... Nf6 {[%clk 0:02:58.3]} 2. b3 {[%clk 0:03:00.6]}
2... d6 {[%clk 0:02:57.7]} 3. d4 {[%clk 0:03:00.3]} 3... Nbd7 {[%clk 0:02:56.8]}
4. Bb2 {[%clk 0:02:59.6]} 4... g6 {[%clk 0:02:57.3]} 5. e3 {[%clk 0:02:58.7]}
5... Bg7 {[%clk 0:02:57.8]} 6. Be2 {[%clk 0:02:59.3]} 6... O-O {[%clk
0:02:57.7]} 7. O-O {[%clk 0:02:59.9]} 7... b6 {[%clk 0:02:58.4]} 8. a4 {[%clk
0:02:58.9]} 8... a6 {[%clk 0:02:57.2]} 9. a5 {[%clk 0:02:56.7]} 9... b5 {[%clk
0:02:56.9]} 10. c4 {[%clk 0:02:57.4]} 10... bxc4 {[%clk 0:02:55.5]} 11. bxc4
{[%clk 0:02:58.3]} 11... Re8 {[%clk 0:02:47]} 12. Nc3 {[%clk 0:02:56.6]} 12...
c6 {[%clk 0:02:45.9]} 13. Qa4 {[%clk 0:02:40.6]} 13... Qc7 {[%clk 0:02:44.4]}
14. Rfc1 {[%clk 0:02:37.5]} 14... e5 {[%clk 0:02:40.2]} 15. c5 {[%clk
0:02:33.1]} 15... dxc5 {[%clk 0:02:27.6]} 16. dxe5 {[%clk 0:02:31.8]} 16... Nxe5
{[%clk 0:02:25.5]} 17. Nxe5 {[%clk 0:02:28.8]} 17... Rxe5 {[%clk 0:02:26.4]} 18.
Bf3 {[%clk 0:02:23.5]} 18... Bd7 {[%clk 0:02:21.7]} 19. Rab1 {[%clk 0:02:22.1]}
19... Ree8 {[%clk 0:02:16.7]} 20. Ba3 {[%clk 0:02:21.5]} 20... Bf8 {[%clk
0:01:59.7]} 21. Rb6 {[%clk 0:02:10.3]} 21... Reb8 {[%clk 0:01:52.9]} 22. Rcb1
{[%clk 0:02:01.1]} 22... Nd5 {[%clk 0:01:42.9]} 23. Qc4 {[%clk 0:01:45.5]} 23...
Nxb6 {[%clk 0:01:38.1]} 24. axb6 {[%clk 0:01:38.7]} 24... Rxb6 {[%clk 0:01:39]}
25. Rd1 {[%clk 0:01:33.7]} 25... Be6 {[%clk 0:01:37.7]} 26. Qa4 {[%clk
0:01:27.3]} 26... Bb3 {[%clk 0:01:34.5]} 27. Qh4 {[%clk 0:01:21.8]} 27... Bxd1
{[%clk 0:01:33]} 28. Ne4 {[%clk 0:01:22.3]} 28... Bg7 {[%clk 0:01:28.7]} 29.
Bxd1 {[%clk 0:01:21.5]} 29... Rb1 {[%clk 0:01:25.8]} 0-1

[Event "Late-Titled-Tuesday-Blitz-June-04-2024"]
[Site "Chess.com"]
[Date "2024.06.04"]
[Round "5"]
[White "sokidze"]
[Black "Charodej1"]
[Result "1-0"]
[WhiteElo "2785"]
[BlackElo "2478"]
[TimeControl "180+1"]
[EndTime "14:52:22 PDT"]
[Termination "sokidze won by resignation"]

1. e4 {[%clk 0:03:00.9]} 1... c6 {[%clk 0:02:59.6]} 2. d4 {[%clk 0:02:59.3]}
2... d5 {[%clk 0:03:00.2]} 3. e5 {[%clk 0:02:59.6]} 3... Bf5 {[%clk 0:02:59.9]}
4. Nf3 {[%clk 0:02:59.5]} 4... e6 {[%clk 0:02:59.4]} 5. Be2 {[%clk 0:03:00.1]}
5... c5 {[%clk 0:02:58.4]} 6. O-O {[%clk 0:02:59.6]} 6... Nc6 {[%clk 0:02:57.8]}
7. c3 {[%clk 0:02:59.6]} 7... cxd4 {[%clk 0:02:44.9]} 8. Nxd4 {[%clk 0:02:59.1]}
8... Nxd4 {[%clk 0:02:44.3]} 9. cxd4 {[%clk 0:02:55.9]} 9... Ne7 {[%clk
0:02:37]} 10. Nc3 {[%clk 0:02:50.6]} 10... Bg6 {[%clk 0:02:14]} 11. Bg5 {[%clk
0:02:36.4]} 11... a6 {[%clk 0:01:58]} 12. Qb3 {[%clk 0:02:10.7]} 12... Qd7
{[%clk 0:01:49.9]} 13. Na4 {[%clk 0:02:09.5]} 13... Nc8 {[%clk 0:01:49]} 14.
Rac1 {[%clk 0:02:03.1]} 14... b5 {[%clk 0:01:18.8]} 15. Rxc8+ {[%clk 0:01:39.9]}
15... Qxc8 {[%clk 0:01:00.2]} 16. Nb6 {[%clk 0:01:38.8]} 16... Bc2 {[%clk
0:00:40.2]} 17. Bxb5+ {[%clk 0:01:34.9]} 1-0

[Event "Late-Titled-Tuesday-Blitz-June-04-2024"]
[Site "Chess.com"]
[Date "2024.06.04"]
[Round "5"]
[White "cthake"]
[Black "profedechess93"]
[Result "0-1"]
[WhiteElo "1755"]
[BlackElo "2591"]
[TimeControl "180+1"]
[EndTime "14:52:26 PDT"]
[Termination "profedechess93 won by checkmate"]

1. e4 {[%clk 0:02:46.2]} 1... e6 {[%clk 0:02:59.8]} 2. d4 {[%clk 0:02:45.3]}
2... d5 {[%clk 0:02:59.5]} 3. Nc3 {[%clk 0:02:44.3]} 3... Nf6 {[%clk 0:02:58.1]}
4. e5 {[%clk 0:02:41]} 4... Nfd7 {[%clk 0:02:57.5]} 5. Nf3 {[%clk 0:02:38.9]}
5... c5 {[%clk 0:02:57.5]} 6. Ne2 {[%clk 0:02:39.1]} 6... Nc6 {[%clk 0:02:54.1]}
7. c3 {[%clk 0:02:38.9]} 7... cxd4 {[%clk 0:02:50.8]} 8. cxd4 {[%clk 0:02:38.1]}
8... Qb6 {[%clk 0:02:34.1]} 9. Nc3 {[%clk 0:02:18.9]} 9... f6 {[%clk 0:02:27.7]}
10. exf6 {[%clk 0:02:17.4]} 10... Nxf6 {[%clk 0:02:28.6]} 11. Be2 {[%clk
0:02:14.9]} 11... Bd6 {[%clk 0:02:26.5]} 12. O-O {[%clk 0:02:14.2]} 12... O-O
{[%clk 0:02:26.2]} 13. Bg5 {[%clk 0:02:12]} 13... Bd7 {[%clk 0:02:12.9]} 14. Nb5
{[%clk 0:01:57.4]} 14... Bb8 {[%clk 0:02:11.3]} 15. Rb1 {[%clk 0:01:42.1]} 15...
Be8 {[%clk 0:01:56.2]} 16. a3 {[%clk 0:01:36.4]} 16... Bg6 {[%clk 0:01:36.7]}
17. Bd3 {[%clk 0:01:31.2]} 17... Bh5 {[%clk 0:01:27.1]} 18. Be2 {[%clk
0:01:24.1]} 18... Bxf3 {[%clk 0:01:25.9]} 19. gxf3 {[%clk 0:01:20.3]} 19... a6
{[%clk 0:01:24.9]} 20. Nc3 {[%clk 0:01:11.1]} 20... Qc7 {[%clk 0:01:18.6]} 21.
Rc1 {[%clk 0:01:01.7]} 21... Qxh2# {[%clk 0:01:17.6]} 0-1

[Event "Late-Titled-Tuesday-Blitz-June-04-2024"]
[Site "Chess.com"]
[Date "2024.06.04"]
[Round "5"]
[White "Stanbad1"]
[Black "artin10862"]
[Result "0-1"]
[WhiteElo "2654"]
[BlackElo "2954"]
[TimeControl "180+1"]
[EndTime "14:52:33 PDT"]
[Termination "artin10862 won by resignation"]

1. d4 {[%clk 0:03:00.9]} 1... Nf6 {[%clk 0:02:56.7]} 2. Nc3 {[%clk 0:03:00.8]}
2... d5 {[%clk 0:02:53.8]} 3. Bf4 {[%clk 0:03:01]} 3... e6 {[%clk 0:02:51.9]} 4.
Nb5 {[%clk 0:03:00.3]} 4... Bb4+ {[%clk 0:02:47.9]} 5. c3 {[%clk 0:03:00.1]}
5... Ba5 {[%clk 0:02:48.5]} 6. a4 {[%clk 0:02:59.9]} 6... a6 {[%clk 0:02:40.5]}
7. b4 {[%clk 0:02:58.9]} 7... axb5 {[%clk 0:01:42.1]} 8. axb5 {[%clk 0:02:59.8]}
8... Bd7 {[%clk 0:01:30.7]} 9. e3 {[%clk 0:02:43.3]} 9... Bxb4 {[%clk 0:01:30]}
10. cxb4 {[%clk 0:02:21.2]} 10... Rxa1 {[%clk 0:01:27.6]} 11. Qxa1 {[%clk
0:02:22.1]} 11... O-O {[%clk 0:01:20.3]} 12. Bd3 {[%clk 0:02:20.5]} 12... Qe8
{[%clk 0:01:13.7]} 13. Bxc7 {[%clk 0:02:17.7]} 13... Bxb5 {[%clk 0:01:13.2]} 14.
Qb1 {[%clk 0:02:17.2]} 14... Qc6 {[%clk 0:01:02.1]} 15. Bxb8 {[%clk 0:02:10.1]}
15... Qc3+ {[%clk 0:00:48.5]} 16. Ke2 {[%clk 0:02:09.6]} 16... Ne4 {[%clk
0:00:42.4]} 17. Nf3 {[%clk 0:02:03.4]} 17... Bxd3+ {[%clk 0:00:37.5]} 18. Qxd3
{[%clk 0:02:02.8]} 18... Qxd3+ {[%clk 0:00:33.2]} 19. Kxd3 {[%clk 0:02:02.4]}
19... Nxf2+ {[%clk 0:00:33.8]} 20. Ke2 {[%clk 0:02:02.7]} 20... Nxh1 {[%clk
0:00:34.5]} 21. Bd6 {[%clk 0:02:02.9]} 21... Ra8 {[%clk 0:00:31.4]} 22. Ne5
{[%clk 0:01:58.3]} 22... Ra2+ {[%clk 0:00:30.6]} 23. Kf3 {[%clk 0:01:58.5]}
23... Nf2 {[%clk 0:00:31]} 24. Nd7 {[%clk 0:01:57.5]} 24... Ne4 {[%clk
0:00:31.4]} 25. Be7 {[%clk 0:01:56.8]} 25... Rf2+ {[%clk 0:00:31.1]} 26. Kg4
{[%clk 0:01:56.9]} 26... Rxg2+ {[%clk 0:00:32]} 27. Kf4 {[%clk 0:01:57.4]} 27...
f6 {[%clk 0:00:32.4]} 0-1

[Event "Late-Titled-Tuesday-Blitz-June-04-2024"]
[Site "Chess.com"]
[Date "2024.06.04"]
[Round "5"]
[White "ulises2013"]
[Black "CarlosjPineror"]
[Result "0-1"]
[WhiteElo "2904"]
[BlackElo "2679"]
[TimeControl "180+1"]
[EndTime "14:52:43 PDT"]
[Termination "CarlosjPineror won by resignation"]

1. e4 {[%clk 0:03:00.9]} 1... c5 {[%clk 0:02:56]} 2. g3 {[%clk 0:03:01]} 2...
Nc6 {[%clk 0:02:55.3]} 3. Bg2 {[%clk 0:03:00.8]} 3... e6 {[%clk 0:02:54.8]} 4.
Ne2 {[%clk 0:03:01.3]} 4... Nf6 {[%clk 0:02:53.7]} 5. O-O {[%clk 0:03:00.4]}
5... h5 {[%clk 0:02:51.9]} 6. h3 {[%clk 0:03:00.1]} 6... d5 {[%clk 0:02:51.3]}
7. exd5 {[%clk 0:03:00.2]} 7... exd5 {[%clk 0:02:52.2]} 8. d4 {[%clk 0:03:00.4]}
8... h4 {[%clk 0:02:52.7]} 9. g4 {[%clk 0:03:00.5]} 9... Nxg4 {[%clk 0:02:52.6]}
10. hxg4 {[%clk 0:03:00.4]} 10... Bxg4 {[%clk 0:02:53.3]} 11. Kh2 {[%clk
0:02:29.6]} 11... Nxd4 {[%clk 0:02:45.1]} 12. Nbc3 {[%clk 0:02:27]} 12... h3
{[%clk 0:02:13.4]} 13. Bh1 {[%clk 0:02:24.4]} 13... Bd6+ {[%clk 0:02:08.6]} 14.
f4 {[%clk 0:02:23.8]} 14... Qe7 {[%clk 0:01:56]} 15. Rf2 {[%clk 0:02:22.7]}
15... O-O-O {[%clk 0:01:52.8]} 16. Qf1 {[%clk 0:02:14.2]} 16... Nxc2 {[%clk
0:01:49.2]} 17. Nxd5 {[%clk 0:01:46.7]} 17... Qh4 {[%clk 0:01:41.2]} 18. Rb1
{[%clk 0:01:46.7]} 18... Bxe2 {[%clk 0:01:30.6]} 19. Rxe2 {[%clk 0:01:34.9]}
19... Nd4 {[%clk 0:01:30.8]} 20. Rf2 {[%clk 0:01:34.9]} 20... g5 {[%clk
0:01:27.9]} 21. Be3 {[%clk 0:01:34.5]} 21... g4 {[%clk 0:01:27.8]} 22. Bxd4
{[%clk 0:00:47.9]} 22... g3+ {[%clk 0:01:26.4]} 23. Kg1 {[%clk 0:00:48.4]} 23...
h2+ {[%clk 0:01:21.6]} 24. Kg2 {[%clk 0:00:48.6]} 24... Qh3+ {[%clk 0:01:21.9]}
25. Kf3 {[%clk 0:00:48.5]} 25... g2+ {[%clk 0:01:22.8]} 0-1

[Event "Late-Titled-Tuesday-Blitz-June-04-2024"]
[Site "Chess.com"]
[Date "2024.06.04"]
[Round "5"]
[White "only_strong_moves"]
[Black "FairChess_on_YouTube"]
[Result "0-1"]
[WhiteElo "2683"]
[BlackElo "3072"]
[TimeControl "180+1"]
[EndTime "14:52:54 PDT"]
[Termination "FairChess_on_YouTube won by resignation"]

1. e4 {[%clk 0:02:50.3]} 1... c5 {[%clk 0:02:59.1]} 2. Nf3 {[%clk 0:02:50.1]}
2... Nc6 {[%clk 0:02:59.6]} 3. d4 {[%clk 0:02:45.7]} 3... cxd4 {[%clk
0:02:59.5]} 4. Nxd4 {[%clk 0:02:46.2]} 4... Qb6 {[%clk 0:03:00]} 5. Nb5 {[%clk
0:02:42.8]} 5... a6 {[%clk 0:02:56.7]} 6. Be3 {[%clk 0:02:41]} 6... Qd8 {[%clk
0:02:55.5]} 7. Nd4 {[%clk 0:02:39.3]} 7... Nf6 {[%clk 0:02:55.5]} 8. Nd2 {[%clk
0:02:37.3]} 8... d5 {[%clk 0:02:50.8]} 9. Bd3 {[%clk 0:02:30.3]} 9... e5 {[%clk
0:02:36.1]} 10. Nxc6 {[%clk 0:02:25.8]} 10... bxc6 {[%clk 0:02:37]} 11. exd5
{[%clk 0:02:26]} 11... cxd5 {[%clk 0:02:36.1]} 12. c3 {[%clk 0:02:24.2]} 12...
Bd6 {[%clk 0:02:34]} 13. O-O {[%clk 0:02:23.2]} 13... O-O {[%clk 0:02:31.9]} 14.
Nb3 {[%clk 0:02:20.3]} 14... Ng4 {[%clk 0:02:31.1]} 15. Bc5 {[%clk 0:02:14.2]}
15... e4 {[%clk 0:02:29.9]} 16. h3 {[%clk 0:00:48.9]} 16... Bxc5 {[%clk
0:02:28.5]} 17. Nxc5 {[%clk 0:00:47.5]} 17... Qc7 {[%clk 0:02:28]} 18. hxg4
{[%clk 0:00:46.7]} 18... Qxc5 {[%clk 0:02:28.4]} 19. Be2 {[%clk 0:00:44.9]}
19... Be6 {[%clk 0:02:29]} 20. Qd2 {[%clk 0:00:41]} 20... a5 {[%clk 0:02:27.7]}
21. g5 {[%clk 0:00:35.6]} 21... Rfb8 {[%clk 0:02:26.3]} 22. Rab1 {[%clk
0:00:25.8]} 22... a4 {[%clk 0:02:24.7]} 23. b4 {[%clk 0:00:23.3]} 23... axb3
{[%clk 0:02:23.6]} 24. axb3 {[%clk 0:00:24.2]} 24... Ra3 {[%clk 0:02:23]} 25.
Bd1 {[%clk 0:00:18.1]} 25... g6 {[%clk 0:02:23.4]} 26. Rc1 {[%clk 0:00:08.2]}
26... Rba8 {[%clk 0:02:21.8]} 27. Qd4 {[%clk 0:00:08.1]} 27... Qxd4 {[%clk
0:02:19.2]} 28. cxd4 {[%clk 0:00:09]} 28... Ra2 {[%clk 0:02:18.7]} 29. Re1
{[%clk 0:00:05.9]} 29... Rd2 {[%clk 0:02:18.4]} 30. f3 {[%clk 0:00:04]} 30...
Raa2 {[%clk 0:02:18.3]} 31. fxe4 {[%clk 0:00:02.9]} 31... Rxg2+ {[%clk
0:02:18.4]} 32. Kh1 {[%clk 0:00:03.6]} 32... Rh2+ {[%clk 0:02:18.8]} 33. Kg1
{[%clk 0:00:04.3]} 33... Rag2+ {[%clk 0:02:19.2]} 34. Kf1 {[%clk 0:00:05]} 34...
Bh3 {[%clk 0:02:19.9]} 0-1

[Event "Late-Titled-Tuesday-Blitz-June-04-2024"]
[Site "Chess.com"]
[Date "2024.06.04"]
[Round "5"]
[White "dolynachess"]
[Black "rikchessmx"]
[Result "1-0"]
[WhiteElo "2513"]
[BlackElo "2348"]
[TimeControl "180+1"]
[EndTime "14:53:15 PDT"]
[Termination "dolynachess won by checkmate"]

1. d4 {[%clk 0:03:00.9]} 1... Nf6 {[%clk 0:02:59.5]} 2. c4 {[%clk 0:03:01.1]}
2... e6 {[%clk 0:03:00.4]} 3. g3 {[%clk 0:03:00.3]} 3... c5 {[%clk 0:03:00.7]}
4. Nf3 {[%clk 0:02:59.7]} 4... cxd4 {[%clk 0:03:00.8]} 5. Nxd4 {[%clk
0:03:00.6]} 5... a6 {[%clk 0:03:01.3]} 6. Bg2 {[%clk 0:03:00.5]} 6... Qc7 {[%clk
0:03:01.9]} 7. O-O {[%clk 0:02:58.4]} 7... Qxc4 {[%clk 0:03:01.2]} 8. Nc3 {[%clk
0:02:58.5]} 8... Nc6 {[%clk 0:03:01]} 9. Be3 {[%clk 0:02:58]} 9... Qb4 {[%clk
0:02:57.6]} 10. a3 {[%clk 0:02:48.9]} 10... Qa5 {[%clk 0:02:53.6]} 11. b4 {[%clk
0:02:44.3]} 11... Qh5 {[%clk 0:02:52.9]} 12. h3 {[%clk 0:02:38]} 12... Be7
{[%clk 0:02:46.1]} 13. g4 {[%clk 0:02:31.7]} 13... Qh4 {[%clk 0:02:44.3]} 14.
Nf3 {[%clk 0:02:27.3]} 14... Qh6 {[%clk 0:02:38.6]} 15. Bxh6 {[%clk 0:02:26.2]}
15... gxh6 {[%clk 0:02:39.5]} 16. b5 {[%clk 0:02:13]} 16... Nd8 {[%clk
0:02:28.6]} 17. Qd2 {[%clk 0:01:59.4]} 17... h5 {[%clk 0:02:24.1]} 18. g5 {[%clk
0:01:59.3]} 18... Ng8 {[%clk 0:02:24.1]} 19. Rfc1 {[%clk 0:01:39.5]} 19... h6
{[%clk 0:02:13.1]} 20. h4 {[%clk 0:01:29]} 20... hxg5 {[%clk 0:02:12.7]} 21.
Nxg5 {[%clk 0:01:29.7]} 21... f6 {[%clk 0:02:12.1]} 22. Nge4 {[%clk 0:01:22.3]}
22... Nh6 {[%clk 0:02:11]} 23. Nd6+ {[%clk 0:01:19.3]} 23... Kf8 {[%clk
0:02:09.8]} 24. Nxc8 {[%clk 0:01:14.8]} 24... Rxc8 {[%clk 0:02:08.5]} 25. Qxd7
{[%clk 0:01:10.2]} 25... Rc4 {[%clk 0:02:02.5]} 26. Ne4 {[%clk 0:01:06.7]} 26...
axb5 {[%clk 0:01:57.3]} 27. Qxb5 {[%clk 0:01:01.9]} 27... Rxc1+ {[%clk
0:01:55.4]} 28. Rxc1 {[%clk 0:01:02.8]} 28... Nf5 {[%clk 0:01:53.3]} 29. Rc7
{[%clk 0:00:57.3]} 29... Rg8 {[%clk 0:01:51.4]} 30. Qd7 {[%clk 0:00:49.9]} 30...
Nc6 {[%clk 0:01:51.3]} 31. Rxb7 {[%clk 0:00:47]} 31... Ne5 {[%clk 0:01:51.2]}
32. Qxe6 {[%clk 0:00:46.2]} 32... Rxg2+ {[%clk 0:01:40.9]} 33. Kxg2 {[%clk
0:00:42.5]} 33... Nxh4+ {[%clk 0:01:40.8]} 34. Kf1 {[%clk 0:00:41.9]} 34... Nhg6
{[%clk 0:01:37]} 35. Nxf6 {[%clk 0:00:36.8]} 35... h4 {[%clk 0:01:31.4]} 36.
Qg8# {[%clk 0:00:27.8]} 1-0

[Event "Late-Titled-Tuesday-Blitz-June-04-2024"]
[Site "Chess.com"]
[Date "2024.06.04"]
[Round "5"]
[White "grzechu96"]
[Black "KingCyber19"]
[Result "1-0"]
[WhiteElo "2801"]
[BlackElo "2616"]
[TimeControl "180+1"]
[EndTime "14:53:22 PDT"]
[Termination "grzechu96 won by resignation"]

1. e4 {[%clk 0:03:00.9]} 1... e5 {[%clk 0:02:57.8]} 2. Nf3 {[%clk 0:03:01]} 2...
Nc6 {[%clk 0:02:56.9]} 3. Bc4 {[%clk 0:03:01.2]} 3... Bc5 {[%clk 0:02:56.5]} 4.
O-O {[%clk 0:03:00]} 4... Nf6 {[%clk 0:02:53.5]} 5. d3 {[%clk 0:03:00.3]} 5...
d6 {[%clk 0:02:50.9]} 6. c3 {[%clk 0:02:59.6]} 6... a6 {[%clk 0:02:48.5]} 7. Bb3
{[%clk 0:02:59.1]} 7... h6 {[%clk 0:02:44.4]} 8. Re1 {[%clk 0:02:58.9]} 8... O-O
{[%clk 0:02:40.9]} 9. h3 {[%clk 0:02:58.4]} 9... Ba7 {[%clk 0:02:38]} 10. Nbd2
{[%clk 0:02:58.1]} 10... Ne7 {[%clk 0:02:38.2]} 11. Nf1 {[%clk 0:02:58]} 11...
Ng6 {[%clk 0:02:38.9]} 12. Ng3 {[%clk 0:02:58.7]} 12... Be6 {[%clk 0:02:34.9]}
13. Bc2 {[%clk 0:02:58.6]} 13... c6 {[%clk 0:02:12.2]} 14. d4 {[%clk 0:02:58.8]}
14... Qc7 {[%clk 0:02:12.3]} 15. Be3 {[%clk 0:02:57.4]} 15... b5 {[%clk
0:02:11.5]} 16. Qd2 {[%clk 0:02:56.6]} 16... Rad8 {[%clk 0:02:08.8]} 17. Bxh6
{[%clk 0:02:45]} 17... gxh6 {[%clk 0:02:02.7]} 18. Qxh6 {[%clk 0:02:45.9]} 18...
Qe7 {[%clk 0:02:00.1]} 19. Nf5 {[%clk 0:02:39.5]} 19... Bxf5 {[%clk 0:01:53.9]}
20. exf5 {[%clk 0:02:40.4]} 20... Nh8 {[%clk 0:01:41.9]} 21. Ng5 {[%clk
0:02:37.7]} 21... Bb8 {[%clk 0:00:44.5]} 22. Re3 {[%clk 0:02:16.1]} 22... d5
{[%clk 0:00:39]} 23. Rg3 {[%clk 0:02:16.3]} 23... Ng6 {[%clk 0:00:38.9]} 24.
fxg6 {[%clk 0:02:13.9]} 24... fxg6 {[%clk 0:00:39.3]} 25. Ne6 {[%clk 0:01:29.4]}
25... Qh7 {[%clk 0:00:23.7]} 26. Rxg6+ {[%clk 0:01:21.5]} 26... Kh8 {[%clk
0:00:22.4]} 27. Rxf6 {[%clk 0:01:20.6]} 1-0

[Event "Late-Titled-Tuesday-Blitz-June-04-2024"]
[Site "Chess.com"]
[Date "2024.06.04"]
[Round "5"]
[White "Chigorinetz"]
[Black "Der_Balak_3Halak"]
[Result "0-1"]
[WhiteElo "2539"]
[BlackElo "2400"]
[TimeControl "180+1"]
[EndTime "14:53:27 PDT"]
[Termination "Der_Balak_3Halak won by resignation"]

1. e4 {[%clk 0:03:00.9]} 1... e6 {[%clk 0:02:59.2]} 2. d4 {[%clk 0:03:00.1]}
2... d5 {[%clk 0:03:00.1]} 3. e5 {[%clk 0:02:58.5]} 3... c5 {[%clk 0:02:59.8]}
4. Qg4 {[%clk 0:02:58.4]} 4... cxd4 {[%clk 0:02:57.4]} 5. Nf3 {[%clk 0:02:57.3]}
5... Nc6 {[%clk 0:02:56.7]} 6. Bd3 {[%clk 0:02:56.5]} 6... Nge7 {[%clk
0:02:48.4]} 7. O-O {[%clk 0:02:54.9]} 7... g6 {[%clk 0:02:46.7]} 8. Re1 {[%clk
0:02:49.2]} 8... Bg7 {[%clk 0:02:46.3]} 9. a3 {[%clk 0:02:48.2]} 9... Qc7 {[%clk
0:02:43.6]} 10. Bf4 {[%clk 0:02:46.3]} 10... O-O {[%clk 0:02:41.8]} 11. b4
{[%clk 0:02:46.3]} 11... a6 {[%clk 0:02:19.5]} 12. Nbd2 {[%clk 0:02:45.7]} 12...
Bd7 {[%clk 0:02:16.4]} 13. Nb3 {[%clk 0:02:44.7]} 13... Rac8 {[%clk 0:02:15.7]}
14. h4 {[%clk 0:02:42.6]} 14... h5 {[%clk 0:02:11.1]} 15. Qg3 {[%clk 0:02:41.9]}
15... Qb6 {[%clk 0:02:00.2]} 16. Rad1 {[%clk 0:02:39.6]} 16... Nf5 {[%clk
0:01:58.2]} 17. Bxf5 {[%clk 0:02:38.8]} 17... exf5 {[%clk 0:01:59.1]} 18. Bg5
{[%clk 0:02:29.7]} 18... Nd8 {[%clk 0:01:34.7]} 19. Nbxd4 {[%clk 0:02:27.3]}
19... Rc3 {[%clk 0:01:31.1]} 20. Re3 {[%clk 0:02:19.7]} 20... Rxe3 {[%clk
0:01:22.2]} 21. Bxe3 {[%clk 0:02:20.6]} 21... Qc7 {[%clk 0:01:21.2]} 22. Ne2
{[%clk 0:01:39.8]} 22... Qxc2 {[%clk 0:01:18.2]} 23. Rd2 {[%clk 0:01:34.8]}
23... Qb1+ {[%clk 0:01:12.9]} 24. Kh2 {[%clk 0:01:33.9]} 24... Ne6 {[%clk
0:01:03.9]} 25. Rxd5 {[%clk 0:01:33]} 25... Bc6 {[%clk 0:01:03.2]} 26. Rd6
{[%clk 0:01:33.1]} 26... Bxf3 {[%clk 0:00:58.5]} 27. gxf3 {[%clk 0:01:31.9]}
27... Qb2 {[%clk 0:00:53.4]} 28. Nd4 {[%clk 0:01:23.3]} 28... f4 {[%clk
0:00:53.7]} 29. Bxf4 {[%clk 0:01:11.1]} 29... Nxd4 {[%clk 0:00:45]} 30. Rd7
{[%clk 0:01:07.9]} 30... Ne2 {[%clk 0:00:43.9]} 31. Qg5 {[%clk 0:01:03.8]} 31...
Nxf4 {[%clk 0:00:44.1]} 32. Qxf4 {[%clk 0:01:04.1]} 32... Bxe5 {[%clk
0:00:43.8]} 0-1

[Event "Late-Titled-Tuesday-Blitz-June-04-2024"]
[Site "Chess.com"]
[Date "2024.06.04"]
[Round "5"]
[White "Bkmzzzzz"]
[Black "Mariia89"]
[Result "1-0"]
[WhiteElo "2415"]
[BlackElo "2240"]
[TimeControl "180+1"]
[EndTime "14:53:37 PDT"]
[Termination "Bkmzzzzz won by resignation"]

1. e4 {[%clk 0:03:00.9]} 1... c6 {[%clk 0:02:59.8]} 2. d4 {[%clk 0:03:00.3]}
2... d5 {[%clk 0:03:00.7]} 3. Nc3 {[%clk 0:03:00.8]} 3... dxe4 {[%clk
0:03:00.4]} 4. Nxe4 {[%clk 0:03:01.7]} 4... Nf6 {[%clk 0:03:00.7]} 5. Nxf6+
{[%clk 0:03:01.3]} 5... exf6 {[%clk 0:03:01.6]} 6. c3 {[%clk 0:02:54.6]} 6...
Be7 {[%clk 0:02:31.1]} 7. Bd3 {[%clk 0:02:54.1]} 7... Na6 {[%clk 0:02:27.7]} 8.
Qc2 {[%clk 0:02:48.1]} 8... Nc7 {[%clk 0:02:27.1]} 9. Ne2 {[%clk 0:02:48.1]}
9... Nd5 {[%clk 0:02:24.1]} 10. Bd2 {[%clk 0:02:48]} 10... Bg4 {[%clk 0:02:15]}
11. O-O-O {[%clk 0:02:43.6]} 11... Qa5 {[%clk 0:02:12.6]} 12. Kb1 {[%clk
0:02:43.2]} 12... Qb6 {[%clk 0:02:08.4]} 13. f3 {[%clk 0:02:36.7]} 13... Bh5
{[%clk 0:02:07.5]} 14. Nf4 {[%clk 0:02:37.2]} 14... Nxf4 {[%clk 0:02:02.7]} 15.
Bxf4 {[%clk 0:02:38.1]} 15... Bg6 {[%clk 0:02:02.8]} 16. Rhe1 {[%clk 0:02:37.4]}
16... Qd8 {[%clk 0:01:57.6]} 17. Bxg6 {[%clk 0:02:16.6]} 17... hxg6 {[%clk
0:01:56.1]} 18. Qe4 {[%clk 0:02:13.3]} 18... Kf8 {[%clk 0:01:54.9]} 19. d5
{[%clk 0:02:07.5]} 19... f5 {[%clk 0:01:44.5]} 20. Qc4 {[%clk 0:01:55.2]} 20...
cxd5 {[%clk 0:01:31.4]} 21. Rxd5 {[%clk 0:01:56.1]} 21... Qb6 {[%clk 0:01:30.8]}
22. Rd7 {[%clk 0:01:02]} 22... g5 {[%clk 0:00:30.8]} 23. Rexe7 {[%clk
0:00:54.8]} 23... Qf6 {[%clk 0:00:30.2]} 24. Rxf7+ {[%clk 0:00:54.3]} 1-0